[Event "Late-Titled-Tuesday-Blitz-March-26-2024"]
[Site "Chess.com"]
[Date "2024.03.26"]
[Round "6"]
[White "MITerryble"]
[Black "The_Machine04"]
[Result "1-0"]
[WhiteElo "2986"]
[BlackElo "2785"]
[TimeControl "180+1"]
[EndTime "15:07:35 PDT"]
[Termination "MITerryble won on time"]

1. Nf3 {[%clk 0:03:00.9]} 1... Nf6 {[%clk 0:02:55.9]} 2. g3 {[%clk 0:02:59.4]}
2... d5 {[%clk 0:02:55.2]} 3. Bg2 {[%clk 0:02:59.8]} 3... Nbd7 {[%clk
0:02:55.8]} 4. O-O {[%clk 0:03:00.4]} 4... e5 {[%clk 0:02:55.6]} 5. d3 {[%clk
0:03:00.5]} 5... c6 {[%clk 0:02:55.1]} 6. Nbd2 {[%clk 0:02:59.3]} 6... Bd6
{[%clk 0:02:54.9]} 7. e4 {[%clk 0:02:59]} 7... O-O {[%clk 0:02:54.9]} 8. Qe2
{[%clk 0:02:56.4]} 8... Re8 {[%clk 0:02:54.9]} 9. a3 {[%clk 0:02:53.9]} 9... a5
{[%clk 0:02:54.2]} 10. b3 {[%clk 0:02:54.5]} 10... h6 {[%clk 0:02:47.4]} 11. Bb2
{[%clk 0:02:54.9]} 11... b5 {[%clk 0:02:46.1]} 12. Nh4 {[%clk 0:02:54.8]} 12...
Nf8 {[%clk 0:02:44]} 13. exd5 {[%clk 0:02:49.2]} 13... cxd5 {[%clk 0:02:44.9]}
14. c4 {[%clk 0:02:49.6]} 14... bxc4 {[%clk 0:02:40.9]} 15. bxc4 {[%clk
0:02:47.9]} 15... Rb8 {[%clk 0:02:38.4]} 16. Rab1 {[%clk 0:02:45.3]} 16... d4
{[%clk 0:02:36.7]} 17. Ne4 {[%clk 0:02:39.9]} 17... Nxe4 {[%clk 0:02:32.5]} 18.
Bxe4 {[%clk 0:02:40.8]} 18... Bh3 {[%clk 0:02:30.5]} 19. Rfe1 {[%clk 0:02:37.7]}
19... Ne6 {[%clk 0:02:15.7]} 20. Qh5 {[%clk 0:02:03.6]} 20... Qg5 {[%clk
0:02:03.7]} 21. Qf3 {[%clk 0:02:03.3]} 21... Qd2 {[%clk 0:01:32.7]} 22. Re2
{[%clk 0:01:53.9]} 22... Qg5 {[%clk 0:00:58.8]} 23. Ree1 {[%clk 0:01:45.9]}
23... Rb3 {[%clk 0:00:43.1]} 24. Qe2 {[%clk 0:01:23.7]} 24... Reb8 {[%clk
0:00:36.8]} 25. Bc1 {[%clk 0:01:23.7]} 25... Nf4 {[%clk 0:00:15.4]} 26. Bxf4
{[%clk 0:01:21.5]} 26... exf4 {[%clk 0:00:16.3]} 27. Rxb3 {[%clk 0:01:21.9]}
27... Rxb3 {[%clk 0:00:16.4]} 28. Nf3 {[%clk 0:01:07]} 28... Qc5 {[%clk
0:00:16.1]} 29. Bd5 {[%clk 0:01:06.4]} 29... Bd7 {[%clk 0:00:15.2]} 30. Qe4
{[%clk 0:01:03.8]} 30... Rxa3 {[%clk 0:00:14]} 31. Nxd4 {[%clk 0:00:49.5]} 31...
Ra2 {[%clk 0:00:14.4]} 32. gxf4 {[%clk 0:00:44.2]} 32... a4 {[%clk 0:00:14.6]}
33. Re3 {[%clk 0:00:40.5]} 33... a3 {[%clk 0:00:14.5]} 34. Nf5 {[%clk
0:00:41.1]} 34... Bxf5 {[%clk 0:00:13.5]} 35. Qxf5 {[%clk 0:00:42]} 35... Ra1+
{[%clk 0:00:12.9]} 36. Kg2 {[%clk 0:00:42]} 36... Qc7 {[%clk 0:00:11.6]} 37.
Re8+ {[%clk 0:00:32.3]} 37... Bf8 {[%clk 0:00:12.1]} 38. Qe5 {[%clk 0:00:32.9]}
38... Qxe5 {[%clk 0:00:11.7]} 39. fxe5 {[%clk 0:00:33.1]} 39... Re1 {[%clk
0:00:05.8]} 40. c5 {[%clk 0:00:20.5]} 40... Rc1 {[%clk 0:00:03.8]} 41. c6 {[%clk
0:00:19.3]} 41... Rc5 {[%clk 0:00:04]} 42. Ra8 {[%clk 0:00:18.8]} 1-0

[Event "Late-Titled-Tuesday-Blitz-March-26-2024"]
[Site "Chess.com"]
[Date "2024.03.26"]
[Round "6"]
[White "EternalNight8"]
[Black "publicaccountcze"]
[Result "0-1"]
[WhiteElo "2446"]
[BlackElo "2274"]
[TimeControl "180+1"]
[EndTime "15:07:36 PDT"]
[Termination "publicaccountcze won by checkmate"]

1. e4 {[%clk 0:03:00.9]} 1... e6 {[%clk 0:02:58.8]} 2. d4 {[%clk 0:03:00.8]}
2... d5 {[%clk 0:02:59.3]} 3. Nd2 {[%clk 0:03:01.4]} 3... Nf6 {[%clk 0:02:55.7]}
4. e5 {[%clk 0:03:01.6]} 4... Nfd7 {[%clk 0:02:56.4]} 5. Bd3 {[%clk 0:03:01.1]}
5... c5 {[%clk 0:02:56.7]} 6. c3 {[%clk 0:03:01.7]} 6... Nc6 {[%clk 0:02:57.3]}
7. Ne2 {[%clk 0:03:02.3]} 7... cxd4 {[%clk 0:02:52.5]} 8. cxd4 {[%clk
0:03:03.2]} 8... f6 {[%clk 0:02:52.5]} 9. Nf4 {[%clk 0:02:57]} 9... Nxd4 {[%clk
0:02:41.3]} 10. Qh5+ {[%clk 0:02:56.7]} 10... Ke7 {[%clk 0:02:36.3]} 11. Ng6+
{[%clk 0:02:56]} 11... hxg6 {[%clk 0:02:36]} 12. exf6+ {[%clk 0:02:56.7]} 12...
Nxf6 {[%clk 0:02:29.7]} 13. Qxh8 {[%clk 0:02:56.6]} 13... Kf7 {[%clk 0:02:25]}
14. O-O {[%clk 0:02:55.2]} 14... Bd7 {[%clk 0:02:15.9]} 15. Nf3 {[%clk
0:02:37.4]} 15... Nxf3+ {[%clk 0:02:14.1]} 16. gxf3 {[%clk 0:02:38.3]} 16... Bd6
{[%clk 0:02:13.7]} 17. Qh4 {[%clk 0:02:30.2]} 17... Qh8 {[%clk 0:02:03.3]} 18.
Bg5 {[%clk 0:02:29.2]} 18... Qxh4 {[%clk 0:01:53.1]} 19. Bxh4 {[%clk 0:02:29]}
19... e5 {[%clk 0:01:54]} 20. Rad1 {[%clk 0:02:10.2]} 20... Bc6 {[%clk
0:01:52.2]} 21. Rfe1 {[%clk 0:01:59.3]} 21... Nh5 {[%clk 0:01:51.5]} 22. Bg3
{[%clk 0:01:57.8]} 22... Re8 {[%clk 0:01:49]} 23. Bc2 {[%clk 0:01:49.2]} 23...
g5 {[%clk 0:01:43.2]} 24. Bb3 {[%clk 0:01:39.2]} 24... Ke6 {[%clk 0:01:43.4]}
25. Re2 {[%clk 0:01:27.8]} 25... Rd8 {[%clk 0:01:32.8]} 26. Rde1 {[%clk
0:01:26.8]} 26... Nf4 {[%clk 0:01:33]} 27. Bxf4 {[%clk 0:01:23.7]} 27... gxf4
{[%clk 0:01:33.9]} 28. Kg2 {[%clk 0:01:10.3]} 28... g5 {[%clk 0:01:33.2]} 29.
Rd1 {[%clk 0:00:54.3]} 29... Bc5 {[%clk 0:01:20.6]} 30. a3 {[%clk 0:00:35.1]}
30... Kd6 {[%clk 0:01:11.9]} 31. Red2 {[%clk 0:00:29]} 31... Bd4 {[%clk
0:01:11.6]} 32. h4 {[%clk 0:00:23.7]} 32... gxh4 {[%clk 0:01:10.2]} 33. Kh3
{[%clk 0:00:24.4]} 33... Bd7+ {[%clk 0:00:51]} 34. Kxh4 {[%clk 0:00:23.3]} 34...
Be6 {[%clk 0:00:23.6]} 35. Kg5 {[%clk 0:00:16.7]} 35... Rf8 {[%clk 0:00:13.3]}
36. Rxd4 {[%clk 0:00:07.6]} 36... exd4 {[%clk 0:00:14.2]} 37. Rxd4 {[%clk
0:00:08.2]} 37... Ke5 {[%clk 0:00:12.2]} 38. Rd1 {[%clk 0:00:08.6]} 38... Rg8+
{[%clk 0:00:12.6]} 39. Kh4 {[%clk 0:00:05.9]} 39... Kf6 {[%clk 0:00:09.6]} 40.
Bxd5 {[%clk 0:00:02]} 40... Rh8# {[%clk 0:00:09.8]} 0-1

[Event "Late-Titled-Tuesday-Blitz-March-26-2024"]
[Site "Chess.com"]
[Date "2024.03.26"]
[Round "6"]
[White "Kildepiotr"]
[Black "Juicy_Fork"]
[Result "1-0"]
[WhiteElo "2731"]
[BlackElo "2557"]
[TimeControl "180+1"]
[EndTime "15:07:37 PDT"]
[Termination "Kildepiotr won by checkmate"]

1. Nf3 {[%clk 0:02:57.5]} 1... Nf6 {[%clk 0:02:59.9]} 2. g3 {[%clk 0:02:57.7]}
2... g6 {[%clk 0:03:00.2]} 3. Bg2 {[%clk 0:02:58.4]} 3... Bg7 {[%clk 0:03:00.2]}
4. O-O {[%clk 0:02:59.3]} 4... O-O {[%clk 0:02:59.9]} 5. d4 {[%clk 0:03:00]}
5... d6 {[%clk 0:03:00.2]} 6. Nbd2 {[%clk 0:03:00]} 6... c5 {[%clk 0:02:59.9]}
7. dxc5 {[%clk 0:02:59.9]} 7... dxc5 {[%clk 0:03:00.8]} 8. e4 {[%clk 0:03:00.5]}
8... Nc6 {[%clk 0:03:00.8]} 9. c3 {[%clk 0:02:59.2]} 9... Qd3 {[%clk 0:02:54.3]}
10. Re1 {[%clk 0:02:58.5]} 10... Rd8 {[%clk 0:02:46.6]} 11. Bf1 {[%clk
0:02:58.6]} 11... Qd7 {[%clk 0:02:44.1]} 12. Qc2 {[%clk 0:02:58.3]} 12... e5
{[%clk 0:02:37.6]} 13. Nc4 {[%clk 0:02:57.7]} 13... Qe7 {[%clk 0:02:37.3]} 14.
Bg5 {[%clk 0:02:54.8]} 14... h6 {[%clk 0:02:36.8]} 15. Bxf6 {[%clk 0:02:54.8]}
15... Bxf6 {[%clk 0:02:37.7]} 16. Ne3 {[%clk 0:02:53.8]} 16... Be6 {[%clk
0:02:37]} 17. Bc4 {[%clk 0:02:53.7]} 17... Bxc4 {[%clk 0:02:24.6]} 18. Nxc4
{[%clk 0:02:54.6]} 18... Qe6 {[%clk 0:02:23.7]} 19. Ne3 {[%clk 0:02:54.4]} 19...
Ne7 {[%clk 0:02:24.1]} 20. Qb3 {[%clk 0:02:47.7]} 20... Qc6 {[%clk 0:02:07.5]}
21. Ng4 {[%clk 0:02:40.3]} 21... c4 {[%clk 0:01:53.2]} 22. Qc2 {[%clk
0:02:27.5]} 22... Qe6 {[%clk 0:01:45.4]} 23. Ne3 {[%clk 0:02:13.1]} 23... b5
{[%clk 0:01:37.9]} 24. Rad1 {[%clk 0:02:10.1]} 24... h5 {[%clk 0:01:30.8]} 25.
h4 {[%clk 0:02:05.9]} 25... a5 {[%clk 0:01:26.4]} 26. a4 {[%clk 0:02:04.3]}
26... b4 {[%clk 0:01:14.2]} 27. Rxd8+ {[%clk 0:02:03.6]} 27... Rxd8 {[%clk
0:01:13.1]} 28. Rd1 {[%clk 0:02:04.5]} 28... Rc8 {[%clk 0:01:10.2]} 29. Nd5
{[%clk 0:01:58]} 29... b3 {[%clk 0:01:05.6]} 30. Qe2 {[%clk 0:01:55.3]} 30...
Qc6 {[%clk 0:00:52]} 31. Nxe5 {[%clk 0:01:46.6]} 31... Qe6 {[%clk 0:00:50.3]}
32. Nxc4 {[%clk 0:01:41.3]} 32... Nxd5 {[%clk 0:00:47.3]} 33. Rxd5 {[%clk
0:01:41]} 33... Qc6 {[%clk 0:00:44.7]} 34. Nxa5 {[%clk 0:01:17.8]} 34... Qxa4
{[%clk 0:00:44.5]} 35. Kg2 {[%clk 0:01:14.8]} 35... Bxc3 {[%clk 0:00:37]} 36.
bxc3 {[%clk 0:01:14.2]} 36... b2 {[%clk 0:00:36.9]} 37. Rb5 {[%clk 0:01:06.7]}
37... Qxa5 {[%clk 0:00:30.6]} 38. Rxa5 {[%clk 0:01:03.6]} 38... b1=Q {[%clk
0:00:30.7]} 39. Qf3 {[%clk 0:00:56.1]} 39... Qb3 {[%clk 0:00:25.4]} 40. e5
{[%clk 0:00:44.9]} 40... Rxc3 {[%clk 0:00:19.1]} 41. Ra8+ {[%clk 0:00:39.6]}
41... Kh7 {[%clk 0:00:18.5]} 42. Qe4 {[%clk 0:00:31.5]} 42... Rc4 {[%clk
0:00:05.6]} 43. Qd5 {[%clk 0:00:29.6]} 43... Rc3 {[%clk 0:00:04.1]} 44. Qd8
{[%clk 0:00:28.4]} 44... Qb7+ {[%clk 0:00:03.2]} 45. Kh2 {[%clk 0:00:28.6]}
45... g5 {[%clk 0:00:02]} 46. Qh8+ {[%clk 0:00:25.4]} 46... Kg6 {[%clk
0:00:02.5]} 47. Qf6+ {[%clk 0:00:25.6]} 47... Kh7 {[%clk 0:00:02.8]} 48. Rh8#
{[%clk 0:00:25.8]} 1-0

[Event "Late-Titled-Tuesday-Blitz-March-26-2024"]
[Site "Chess.com"]
[Date "2024.03.26"]
[Round "6"]
[White "b_6"]
[Black "Xavier_mompel"]
[Result "1-0"]
[WhiteElo "2487"]
[BlackElo "2339"]
[TimeControl "180+1"]
[EndTime "15:07:37 PDT"]
[Termination "b_6 won by resignation"]

1. d4 {[%clk 0:03:00.9]} 1... d5 {[%clk 0:02:59.2]} 2. c4 {[%clk 0:03:00]} 2...
e6 {[%clk 0:02:59.1]} 3. Nc3 {[%clk 0:02:59.8]} 3... Nf6 {[%clk 0:02:59.3]} 4.
Bg5 {[%clk 0:02:59.5]} 4... dxc4 {[%clk 0:02:55.9]} 5. e3 {[%clk 0:02:56.4]}
5... Be7 {[%clk 0:02:42.8]} 6. Bxc4 {[%clk 0:02:55.4]} 6... O-O {[%clk
0:02:42.4]} 7. Nf3 {[%clk 0:02:52.9]} 7... a6 {[%clk 0:02:42.6]} 8. O-O {[%clk
0:02:41.1]} 8... b5 {[%clk 0:02:42.5]} 9. Be2 {[%clk 0:02:29.1]} 9... Bb7 {[%clk
0:02:40.6]} 10. Ne5 {[%clk 0:02:27.9]} 10... h6 {[%clk 0:02:29.3]} 11. Bh4
{[%clk 0:02:27.1]} 11... b4 {[%clk 0:02:26.6]} 12. Na4 {[%clk 0:02:21.9]} 12...
Nbd7 {[%clk 0:02:23.8]} 13. Nxd7 {[%clk 0:02:11.8]} 13... Qxd7 {[%clk
0:02:23.1]} 14. Bxf6 {[%clk 0:02:11.6]} 14... gxf6 {[%clk 0:02:15]} 15. Rc1
{[%clk 0:02:04.9]} 15... Kh8 {[%clk 0:01:52.5]} 16. Nc5 {[%clk 0:01:59.7]} 16...
Bxc5 {[%clk 0:01:51.8]} 17. Rxc5 {[%clk 0:02:00.6]} 17... f5 {[%clk 0:01:51.3]}
18. Bf3 {[%clk 0:01:56.6]} 18... Bxf3 {[%clk 0:01:46.7]} 19. Qxf3 {[%clk
0:01:57.5]} 19... Rg8 {[%clk 0:01:39.2]} 20. Rfc1 {[%clk 0:01:53]} 20... Rac8
{[%clk 0:01:30.9]} 21. Qf4 {[%clk 0:01:46.9]} 21... Kh7 {[%clk 0:01:22.3]} 22.
Rxc7 {[%clk 0:01:35.3]} 22... Rxc7 {[%clk 0:01:22.5]} 23. Rxc7 {[%clk
0:01:29.2]} 23... Rc8 {[%clk 0:01:15.8]} 24. Rxc8 {[%clk 0:01:23]} 24... Qxc8
{[%clk 0:01:16.7]} 25. g4 {[%clk 0:01:13.5]} 25... Qc1+ {[%clk 0:01:08.8]} 26.
Kg2 {[%clk 0:01:13.2]} 26... fxg4 {[%clk 0:01:00.4]} 27. Qxf7+ {[%clk
0:01:12.5]} 27... Kh8 {[%clk 0:01:00]} 28. Qf6+ {[%clk 0:01:07]} 28... Kh7
{[%clk 0:00:59.9]} 29. b3 {[%clk 0:00:56]} 29... Qc6+ {[%clk 0:00:54.3]} 30. Kg3
{[%clk 0:00:52]} 30... h5 {[%clk 0:00:51.8]} 31. Qf7+ {[%clk 0:00:45]} 31... Kh6
{[%clk 0:00:50.3]} 32. Qf6+ {[%clk 0:00:42.9]} 32... Kh7 {[%clk 0:00:50.2]} 33.
Kh4 {[%clk 0:00:41.8]} 33... Qd5 {[%clk 0:00:30.3]} 34. Qf7+ {[%clk 0:00:39.4]}
34... Kh6 {[%clk 0:00:30.1]} 35. Qf6+ {[%clk 0:00:37.1]} 35... Kh7 {[%clk
0:00:30.4]} 36. Qe5 {[%clk 0:00:24.1]} 36... Qxe5 {[%clk 0:00:23.2]} 37. dxe5
{[%clk 0:00:25]} 37... Kg6 {[%clk 0:00:23.2]} 38. h3 {[%clk 0:00:23.5]} 38...
gxh3 {[%clk 0:00:16.1]} 39. Kxh3 {[%clk 0:00:24.4]} 39... Kf5 {[%clk 0:00:11.3]}
40. f4 {[%clk 0:00:23.8]} 40... Ke4 {[%clk 0:00:09.6]} 41. Kh4 {[%clk
0:00:23.7]} 41... Kxe3 {[%clk 0:00:10]} 42. f5 {[%clk 0:00:23.9]} 42... exf5
{[%clk 0:00:07.5]} 43. e6 {[%clk 0:00:24]} 43... f4 {[%clk 0:00:08.1]} 44. e7
{[%clk 0:00:24.3]} 44... f3 {[%clk 0:00:08.6]} 45. e8=Q+ {[%clk 0:00:24.6]}
45... Kd2 {[%clk 0:00:08.7]} 46. Qxh5 {[%clk 0:00:21.7]} 46... f2 {[%clk
0:00:08.7]} 47. Qf3 {[%clk 0:00:21.6]} 47... Ke1 {[%clk 0:00:08.8]} 48. Qe3+
{[%clk 0:00:21.7]} 1-0

[Event "Late-Titled-Tuesday-Blitz-March-26-2024"]
[Site "Chess.com"]
[Date "2024.03.26"]
[Round "6"]
[White "nabukatnezarr"]
[Black "Practical-Play"]
[Result "1-0"]
[WhiteElo "2607"]
[BlackElo "2472"]
[TimeControl "180+1"]
[EndTime "15:07:39 PDT"]
[Termination "nabukatnezarr won on time"]

1. Nf3 {[%clk 0:03:00.9]} 1... d5 {[%clk 0:02:52.6]} 2. g3 {[%clk 0:03:01.8]}
2... Nd7 {[%clk 0:02:50.6]} 3. Bg2 {[%clk 0:03:01.7]} 3... e5 {[%clk 0:02:49.4]}
4. O-O {[%clk 0:03:01.1]} 4... e4 {[%clk 0:02:45.4]} 5. Ne1 {[%clk 0:03:01.2]}
5... Ngf6 {[%clk 0:02:45.5]} 6. d3 {[%clk 0:03:01.5]} 6... exd3 {[%clk
0:02:39.8]} 7. cxd3 {[%clk 0:02:46.7]} 7... Bd6 {[%clk 0:02:33.7]} 8. Nc3 {[%clk
0:02:46.3]} 8... c6 {[%clk 0:02:28.1]} 9. b3 {[%clk 0:02:31.8]} 9... h5 {[%clk
0:02:22.3]} 10. h4 {[%clk 0:02:20.7]} 10... Qc7 {[%clk 0:02:17.6]} 11. Nf3
{[%clk 0:02:18.7]} 11... Ng4 {[%clk 0:02:09.3]} 12. e4 {[%clk 0:02:12.6]} 12...
dxe4 {[%clk 0:01:37.9]} 13. Nxe4 {[%clk 0:02:12.1]} 13... O-O {[%clk 0:01:32]}
14. Bb2 {[%clk 0:02:01.7]} 14... Rd8 {[%clk 0:01:18.7]} 15. Qc2 {[%clk
0:01:48.3]} 15... Bf8 {[%clk 0:01:02.1]} 16. Neg5 {[%clk 0:01:44.8]} 16... Ndf6
{[%clk 0:00:56.8]} 17. Rfe1 {[%clk 0:01:33.6]} 17... Bf5 {[%clk 0:00:52.8]} 18.
Rad1 {[%clk 0:01:32.3]} 18... Qb6 {[%clk 0:00:42.7]} 19. Ne4 {[%clk 0:00:44.2]}
19... Bxe4 {[%clk 0:00:25.4]} 20. dxe4 {[%clk 0:00:45.1]} 20... Rxd1 {[%clk
0:00:19.4]} 21. Rxd1 {[%clk 0:00:44.1]} 21... Nxe4 {[%clk 0:00:20]} 22. Bd4
{[%clk 0:00:43.5]} 22... Nc5 {[%clk 0:00:17.3]} 23. Ng5 {[%clk 0:00:43.6]} 23...
g6 {[%clk 0:00:14.3]} 24. Qc4 {[%clk 0:00:43.7]} 24... Qc7 {[%clk 0:00:04.9]}
25. Bxc5 {[%clk 0:00:40.7]} 25... b5 {[%clk 0:00:04.4]} 26. Qc2 {[%clk
0:00:35.7]} 26... Bg7 {[%clk 0:00:03.6]} 27. Bf3 {[%clk 0:00:26.7]} 27... Ne5
{[%clk 0:00:03.2]} 28. Be4 {[%clk 0:00:24.4]} 28... Re8 {[%clk 0:00:03.6]} 29.
Kg2 {[%clk 0:00:23.7]} 29... Ng4 {[%clk 0:00:03.3]} 30. Bf3 {[%clk 0:00:22.9]}
30... Nf6 {[%clk 0:00:03.7]} 31. Qd2 {[%clk 0:00:18.8]} 31... Kh8 {[%clk
0:00:02]} 32. Qd6 {[%clk 0:00:18.3]} 32... Qa5 {[%clk 0:00:02.2]} 33. Nxf7+
{[%clk 0:00:18.2]} 33... Kg8 {[%clk 0:00:02.1]} 34. Ne5 {[%clk 0:00:16.1]} 34...
Qxa2 {[%clk 0:00:02.1]} 35. Bxc6 {[%clk 0:00:14]} 35... Rc8 {[%clk 0:00:01.1]}
36. Qe6+ {[%clk 0:00:12.2]} 36... Kh7 {[%clk 0:00:01.5]} 37. Qxc8 {[%clk
0:00:12.4]} 37... Qxb3 {[%clk 0:00:01.8]} 38. Bf3 {[%clk 0:00:12.2]} 38... Qc3
{[%clk 0:00:01.3]} 39. Rd8 {[%clk 0:00:11.2]} 39... Qxe5 {[%clk 0:00:01.1]} 40.
Bd4 {[%clk 0:00:09.2]} 1-0

[Event "Late-Titled-Tuesday-Blitz-March-26-2024"]
[Site "Chess.com"]
[Date "2024.03.26"]
[Round "6"]
[White "azikom"]
[Black "CURRUTACO59"]
[Result "1-0"]
[WhiteElo "2628"]
[BlackElo "2271"]
[TimeControl "180+1"]
[EndTime "15:07:41 PDT"]
[Termination "azikom won on time"]

1. c4 {[%clk 0:02:51.4]} 1... c5 {[%clk 0:02:58.1]} 2. Nc3 {[%clk 0:02:51]} 2...
Nc6 {[%clk 0:02:58]} 3. g3 {[%clk 0:02:51.5]} 3... g6 {[%clk 0:02:58.3]} 4. Bg2
{[%clk 0:02:52.4]} 4... Bg7 {[%clk 0:02:58.7]} 5. h4 {[%clk 0:02:53.1]} 5... h5
{[%clk 0:02:57.5]} 6. d3 {[%clk 0:02:53.3]} 6... d6 {[%clk 0:02:57.7]} 7. Nh3
{[%clk 0:02:53.9]} 7... a6 {[%clk 0:02:48.4]} 8. Ng5 {[%clk 0:02:53.5]} 8... Rb8
{[%clk 0:02:43.9]} 9. Bd2 {[%clk 0:02:52.5]} 9... Nf6 {[%clk 0:02:20.2]} 10. O-O
{[%clk 0:02:52.1]} 10... Bg4 {[%clk 0:02:16]} 11. Re1 {[%clk 0:02:48.6]} 11...
Qd7 {[%clk 0:02:15.3]} 12. Nd5 {[%clk 0:02:43.9]} 12... b5 {[%clk 0:02:03.2]}
13. Bc3 {[%clk 0:02:43.3]} 13... e5 {[%clk 0:01:53.6]} 14. Nxf6+ {[%clk
0:02:29.4]} 14... Bxf6 {[%clk 0:01:52.5]} 15. Ne4 {[%clk 0:02:29.4]} 15... Bg7
{[%clk 0:01:48.2]} 16. b3 {[%clk 0:02:25]} 16... b4 {[%clk 0:01:45.1]} 17. Bb2
{[%clk 0:02:24.5]} 17... O-O {[%clk 0:01:40.1]} 18. a3 {[%clk 0:02:23.6]} 18...
a5 {[%clk 0:01:35.2]} 19. axb4 {[%clk 0:02:23.4]} 19... axb4 {[%clk 0:01:35.3]}
20. Ra6 {[%clk 0:02:23.8]} 20... Ra8 {[%clk 0:01:25.2]} 21. Rxc6 {[%clk
0:02:22.1]} 21... Ra2 {[%clk 0:01:08.3]} 22. Bc1 {[%clk 0:02:13.4]} 22... f5
{[%clk 0:00:49.8]} 23. Rxd6 {[%clk 0:02:05.9]} 23... Qe7 {[%clk 0:00:49.3]} 24.
Bg5 {[%clk 0:02:04]} 24... Qc7 {[%clk 0:00:48.3]} 25. Rxg6 {[%clk 0:01:59.2]}
25... fxe4 {[%clk 0:00:46.6]} 26. dxe4 {[%clk 0:01:55.5]} 26... Qf7 {[%clk
0:00:41]} 27. Qd5 {[%clk 0:01:50.7]} 27... Bxe2 {[%clk 0:00:40.4]} 28. Bh6
{[%clk 0:01:41.9]} 28... Qxd5 {[%clk 0:00:23.1]} 29. Rxg7+ {[%clk 0:01:41.7]}
29... Kh8 {[%clk 0:00:23.3]} 30. exd5 {[%clk 0:01:42.6]} 30... Rf6 {[%clk
0:00:21.5]} 31. Re7 {[%clk 0:01:31.7]} 31... Rxh6 {[%clk 0:00:20.8]} 32. Re8+
{[%clk 0:01:28.4]} 32... Kg7 {[%clk 0:00:20.4]} 33. Rxe5 {[%clk 0:01:29.3]}
33... Bg4 {[%clk 0:00:17.4]} 34. Re7+ {[%clk 0:01:18.8]} 34... Kf8 {[%clk
0:00:17.3]} 35. f3 {[%clk 0:01:00.2]} 35... Bf5 {[%clk 0:00:15.2]} 36. R7e5
{[%clk 0:00:56.2]} 36... Rf6 {[%clk 0:00:14.8]} 37. d6 {[%clk 0:00:52.6]} 37...
Bd7 {[%clk 0:00:12]} 38. Rd1 {[%clk 0:00:39.8]} 38... Rb2 {[%clk 0:00:11.7]} 39.
Rd3 {[%clk 0:00:37.7]} 39... Rb1+ {[%clk 0:00:05.4]} 40. Kf2 {[%clk 0:00:34.9]}
40... Rb2+ {[%clk 0:00:05.1]} 41. Re2 {[%clk 0:00:35.2]} 41... Rxe2+ {[%clk
0:00:03.6]} 42. Kxe2 {[%clk 0:00:34.7]} 42... Re6+ {[%clk 0:00:04.2]} 43. Kf2
{[%clk 0:00:32]} 43... Kf7 {[%clk 0:00:01.9]} 44. Bh3 {[%clk 0:00:30.7]} 44...
Rxd6 {[%clk 0:00:01.7]} 45. Rxd6 {[%clk 0:00:29.9]} 45... Bxh3 {[%clk
0:00:02.3]} 46. Rd5 {[%clk 0:00:30.6]} 1-0

[Event "Late-Titled-Tuesday-Blitz-March-26-2024"]
[Site "Chess.com"]
[Date "2024.03.26"]
[Round "6"]
[White "Aram7Adam"]
[Black "LeoWin2012"]
[Result "0-1"]
[WhiteElo "2418"]
[BlackElo "2303"]
[TimeControl "180+1"]
[EndTime "15:07:45 PDT"]
[Termination "LeoWin2012 won by checkmate"]

1. e4 {[%clk 0:03:00]} 1... e5 {[%clk 0:03:00.3]} 2. Nf3 {[%clk 0:02:59.9]} 2...
Nf6 {[%clk 0:03:00.8]} 3. Bc4 {[%clk 0:02:58.8]} 3... Bc5 {[%clk 0:03:00.1]} 4.
O-O {[%clk 0:02:56.8]} 4... O-O {[%clk 0:02:59.6]} 5. Nxe5 {[%clk 0:02:54.8]}
5... Nxe4 {[%clk 0:02:59]} 6. d4 {[%clk 0:02:49.2]} 6... d5 {[%clk 0:02:53.4]}
7. Bd3 {[%clk 0:02:28.9]} 7... Bxd4 {[%clk 0:02:48.5]} 8. Bxe4 {[%clk
0:02:26.8]} 8... dxe4 {[%clk 0:02:45.4]} 9. Nc4 {[%clk 0:02:23.6]} 9... Be6
{[%clk 0:02:41.2]} 10. Ne3 {[%clk 0:02:23.4]} 10... Nc6 {[%clk 0:02:39.6]} 11.
Nc3 {[%clk 0:02:21.9]} 11... Bxc3 {[%clk 0:02:39.2]} 12. bxc3 {[%clk 0:02:22.8]}
12... Ne5 {[%clk 0:02:37.2]} 13. Ba3 {[%clk 0:02:21.7]} 13... Re8 {[%clk
0:02:37]} 14. Rb1 {[%clk 0:02:20.7]} 14... b6 {[%clk 0:02:36.6]} 15. Qd4 {[%clk
0:02:16.8]} 15... Qg5 {[%clk 0:01:55.5]} 16. Qxe4 {[%clk 0:02:12.7]} 16... Bxa2
{[%clk 0:01:51.8]} 17. Rbe1 {[%clk 0:01:59]} 17... Nc4 {[%clk 0:01:42.2]} 18.
Qc6 {[%clk 0:01:30.7]} 18... Nxa3 {[%clk 0:01:05.1]} 19. Nd5 {[%clk 0:01:05.6]}
19... Red8 {[%clk 0:00:56.9]} 20. Nxc7 {[%clk 0:01:03.8]} 20... Rac8 {[%clk
0:00:49.9]} 21. Re3 {[%clk 0:00:40.1]} 21... Bd5 {[%clk 0:00:46.3]} 22. Nxd5
{[%clk 0:00:32.1]} 22... Rxc6 {[%clk 0:00:45.1]} 23. Ne7+ {[%clk 0:00:33]} 23...
Kh8 {[%clk 0:00:29.3]} 24. Nxc6 {[%clk 0:00:33.9]} 24... Rf8 {[%clk 0:00:27.6]}
25. Rfe1 {[%clk 0:00:32.1]} 25... h5 {[%clk 0:00:27.1]} 26. h3 {[%clk
0:00:26.6]} 26... Nc4 {[%clk 0:00:26.9]} 27. Rg3 {[%clk 0:00:26.6]} 27... Qf6
{[%clk 0:00:25.6]} 28. Nd4 {[%clk 0:00:25.7]} 28... g6 {[%clk 0:00:23.3]} 29.
Rf3 {[%clk 0:00:24.2]} 29... Qg7 {[%clk 0:00:23.4]} 30. Re7 {[%clk 0:00:23.7]}
30... Ne5 {[%clk 0:00:22.9]} 31. Re3 {[%clk 0:00:21.2]} 31... Nc4 {[%clk
0:00:23.1]} 32. Rf3 {[%clk 0:00:21]} 32... Kg8 {[%clk 0:00:18.6]} 33. Rxa7
{[%clk 0:00:20.7]} 33... Re8 {[%clk 0:00:16.6]} 34. Kh2 {[%clk 0:00:17.8]} 34...
Nd2 {[%clk 0:00:16.4]} 35. Rd3 {[%clk 0:00:15.9]} 35... Qe5+ {[%clk 0:00:16.3]}
36. g3 {[%clk 0:00:15]} 36... Nf1+ {[%clk 0:00:16.4]} 37. Kg2 {[%clk 0:00:14.9]}
37... Qe1 {[%clk 0:00:11.9]} 38. Nf3 {[%clk 0:00:13.1]} 38... Qb1 {[%clk
0:00:06.8]} 39. Rdd7 {[%clk 0:00:12.8]} 39... Qxc2 {[%clk 0:00:06.9]} 40. Rxf7
{[%clk 0:00:12.7]} 40... Ne3+ {[%clk 0:00:07.2]} 41. Kh2 {[%clk 0:00:12.1]}
41... Qxf2+ {[%clk 0:00:06.9]} 42. Kh1 {[%clk 0:00:12.1]} 42... Qg2# {[%clk
0:00:07.8]} 0-1